Cogmind - Beta 10.2 @@@ ROGUE MODE // 2021.05.01 @ 21:33:41 Player: reason Result: Self-destructed Performance ------------- Evolutions (1) 500 Regions Visited (2) 400 Robots Destroyed (6) 30 Value Destroyed (195) 195 Prototype IDs (0) 0 Alien Tech Used (0) 0 Bonus (0) 0 TOTAL SCORE: 1125 Bonus ------- None Cogmind --------- Core Integrity 298/400 Matter 300/300 Energy 275/275 System Corruption 0% Temperature Cool (0) Movement Treading (160) Location -9/Materials Parts ------- > --- POWER (1) -------- Deuterium Engine > --- PROPULSION (4) --- Light Treads Light Treads Aluminum Leg Aluminum Leg > --- UTILITY (2) ------ Small Storage Unit > --- WEAPON (2) ------- Heavy Flail > --- INVENTORY (6) ---- Light Ion Engine High-capacity Storage Unit Signal Interpreter Small Laser Peak State ------------ > --- POWER ------------ Deuterium Engine > --- PROPULSION ------- Light Treads Light Treads Aluminum Leg Aluminum Leg > --- UTILITY ---------- Small Storage Unit > --- WEAPON ----------- Improved Datajack Heavy Flail > --- INVENTORY -------- Light Ion Engine High-capacity Storage Unit Signal Interpreter Small Laser [Rating: 14] Favorites ----------- Power Deuterium Engine Engine Deuterium Engine Propulsion Aluminum Leg Treads Light Treads Leg Aluminum Leg Utility Small Storage Unit Storage Small Storage Unit Weapon Small Laser Energy Gun Small Laser Impact Weapon Heavy Flail Special Melee Weapon Improved Datajack Build | -11 -10 -9 ------- Run | Scr Mat Mat Slots Evolved 2 | . . 2 Power . | . . . Propulsion 2 | . . 2 Utility . | . . . Weapon . | . . . Parts Attached 13 | 6 . 7 Power 2 | 1 . 1 Engine 2 | 1 . 1 Core . | . . . Reactor . | . . . Propulsion 4 | 2 . 2 Treads 2 | . . 2 Leg 2 | 2 . . Wheel . | . . . Hover . | . . . Flight . | . . . Utility 1 | 1 . . Device . | . . . Storage 1 | 1 . . Processor . | . . . Hackware . | . . . Protection . | . . . Artifact . | . . . Weapon 6 | 2 . 4 Energy Gun 3 | 2 . 1 Energy Cannon . | . . . Ballistic Gun . | . . . Ballistic Cannon . | . . . Launcher . | . . . Special Weapon . | . . . Impact Weapon 1 | . . 1 Slashing Weapon . | . . . Piercing Weapon . | . . . Special Melee Weapon 2 | . . 2 Unidentified Prototypes . | . . . Parts Lost 2 | . 1 1 Power . | . . . Propulsion . | . . . Utility . | . . . Weapon 2 | . 1 1 Highest Loss Streak 1 | . 1 1 Average Slot Usage (%) 78 | . 78 78 Engine 12 | . 14 11 Treads 10 | . . 16 Leg 24 | . 28 22 Storage 12 | . 14 11 Energy Gun 8 | . 21 . Impact Weapon 6 | . . 9 Special Melee Weapon 4 | . . 7 Naked Turns . | . . . Heaviest Build 17 | 11 11 17 Greatest Support 40 | 20 20 40 Greatest Overweight (x) . | . . . Average Overweight (x) . | . . . Largest Inventory Capacity 6 | 6 6 6 Average Capacity 5 | 5 6 6 Most Carried 6 | 4 5 6 Average Carried 3 | 1 3 4 Final Capacity 6 | 6 6 6 Final Carried 5 | . 5 4 Class Distribution -------------------- 100% | Mutant Dominant Class ---------------- Mutant | -10/Materials Mutant | -9/Materials Resources | -11 -10 -9 ----------- Run | Scr Mat Mat Matter Collected 320 | 210 45 65 Remotely . | . . . Salvage Created 250 | . 112 138 Parts 10 | . 3 7 Haulers Intercepted . | . . . Recyclers Shooed . | . . . Parts Field Recycled . | . . . Retrieved Matter . | . . . Parts Self-Destructed . | . . . Prevented . | . . . Kills | -11 -10 -9 ------- Run | Scr Mat Mat Combat Hostiles Destroyed 5 | . 2 3 Melee 3 | . . 3 Guns 2 | . 2 . Classes Destroyed 3 | . 2 1 Worker 1 | . 1 . Grunt 4 | . 2 2 Sentry 1 | . . 1 Best Kill Streak 3 | . 3 3 Combat Bots Only 3 | . 2 3 Max Kills in Single Turn 1 | . 1 1 Gunslinging . | . . . Exploded . | . . . Melee 1 | . . 1 Uniques/NPCs Destroyed . | . . . Combat | -11 -10 -9 -------- Run | Scr Mat Mat Damage Taken 628 | . 145 483 Core 124 | . 22 102 Absorbed by Shields . | . . . Core Remaining (%) 95 | 100 91 . Volleys Fired 10 | . 10 . Largest 2 | . 2 . Hottest 80 | . 80 . Shots Fired 16 | . 16 . Gun 16 | . 16 . Cannon . | . . . Launcher . | . . . Special . | . . . Kinetic . | . . . Thermal 16 | . 16 . Explosive . | . . . Electromagnetic . | . . . Robot Hit Streak 6 | . 6 . Robot Miss Streak 2 | . 2 . Penetration Max . | . . . Secondary Targets 1 | . 1 . Max Gunslinging Chain 1 | . 1 . Shots Hit Robots 21 | . 11 10 Core Hits 8 | . 5 3 Critical Hits . | . . . Critical Kills . | . . . Critical Parts Destroyed . | . . . Melee Attacks 12 | . . 12 Impact 12 | . . 12 Slashing . | . . . Piercing . | . . . Sneak Attacks . | . . . Combat Hostiles . | . . . Follow-up Attacks . | . . . Damage Inflicted 411 | . 134 277 Guns 134 | . 134 . Cannons . | . . . Explosions . | . . . Melee 277 | . . 277 Ramming . | . . . Kinetic . | . . . Thermal 134 | . 134 . Explosive . | . . . Electromagnetic . | . . . Impact 277 | . . 277 Slashing . | . . . Piercing . | . . . Highest Corruption . | . . . Average Corruption . | . . . Corruption Purged . | . . . Overload Shots . | . . . Overflow Damage . | . . . Projectiles . | . . . Explosions . | . . . Melee . | . . . Knockbacks 1 | . . 1 Impact 1 | . . 1 Kinetic . | . . . Secondary . | . . . Self-Inflicted Damage . | . . . Shots . | . . . Rammed . | . . . Targets Rammed . | . . . Kicked . | . . . Crushed . | . . . Highest Temperature 174 | . 174 . Average Temperature 105 | . 105 . Received Heat Transfer 312 | . 78 234 Siege Activations . | . . . Robots Corrupted . | . . . Combat Hostiles . | . . . Parts Fried . | . . . Impact Corruptions . | . . . Robots Melted . | . . . Combat Hostiles . | . . . Parts Melted . | . . . Heat Transferred 300 | . 300 . Parts Sabotaged . | . . . Parts Stolen . | . . . Parts Stripped . | . . . Power Chain Reactions . | . . . Missiles Intercepted . | . . . Alert | -11 -10 -9 ------- Run | Scr Mat Mat Peak Influence 125 | . 60 125 Initial 25 | . . 25 Average 40 | . 23 57 Maximum Alert Level . | . . . Low Security (%) 100 | 100 100 100 Level 1 . | . . . Level 2 . | . . . Level 3 . | . . . Level 4 . | . . . Level 5 . | . . . High Security . | . . . Max Security . | . . . Squads Dispatched 3 | . 1 2 Investigation 1 | . 1 . Extermination . | . . . Reinforcement 2 | . . 2 Assault . | . . . Garrison . | . . . Intercept . | . . . Construction Impeded . | . . . Haulers Reinforced . | . . . Stealth | -11 -10 -9 --------- Run | Scr Mat Mat Distress Signals 3 | . . 3 Communications Jammed . | . . . Distress Signals . | . . . Times Spotted 9 | . 3 6 Peak Tracking Total 3 | . 2 3 Tactical Retreats . | . . . Traps | -11 -10 -9 ------- Run | Scr Mat Mat Traps Triggered 1 | . 1 . Indirectly . | . . . Trap Hack Attempts . | . . . Triggered . | . . . Disarmed . | . . . Reprogrammed . | . . . Reused . | . . . Traps Extracted . | . . . Installed . | . . . Triggered . | . . . Machines | -11 -10 -9 ---------- Run | Scr Mat Mat Machines Disabled . | . . . Max in Single Turn . | . . . Machines Sabotaged . | . . . Garrisons Compromised . | . . . Overloaded Fab Kills . | . . . Fab Network Shutdowns . | . . . Hacking | -11 -10 -9 --------- Run | Scr Mat Mat Machines Accessed . | . . . Terminals . | . . . Fabricators . | . . . Repair Stations . | . . . Recycling Units . | . . . Scanalyzers . | . . . Garrison Access . | . . . Total Hacks . | . . . Successful . | . . . Failed . | . . . Catastrophic . | . . . Database Lockouts . | . . . Manual . | . . . Terminals . | . . . Fabricators . | . . . Repair Stations . | . . . Recycling Units . | . . . Scanalyzers . | . . . Garrison Access . | . . . Terminal Hacks . | . . . Fabricator Hacks . | . . . Repair Station Hacks . | . . . Recycling Unit Hacks . | . . . Scanalyzer . | . . . Garrison Access Hacks . | . . . Unauthorized Hacks . | . . . Terminals . | . . . Fabricators . | . . . Repair Stations . | . . . Recycling Units . | . . . Scanalyzers . | . . . Garrison Access . | . . . Data Cores Recovered . | . . . Used . | . . . Hacking Detections . | . . . Full Trace Events . | . . . Feedback Events . | . . . Feedback Blocked . | . . . Robot Schematics Acquired . | . . . Robots Built . | . . . Matter . | . . . Time . | . . . Total Robot Build Rating . | . . . Part Schematics Acquired . | . . . Parts Built . | . . . Matter . | . . . Time . | . . . Total Part Build Rating . | . . . Parts Repaired . | . . . Time . | . . . Parts Recycled . | . . . Recycled Matter . | . . . Retrieved Matter . | . . . Retrieved Components . | . . . Parts Scanalyzed . | . . . Part Schematics Acquired . | . . . Parts Damaged . | . . . Bothacking | -11 -10 -9 ------------ Run | Scr Mat Mat Used RIF Installer . | . . . Robots Hacked . | . . . Non-combat . | . . . Combat . | . . . Robot Hacks Applied . | . . . Relay Couplers Released . | . . . Robots Rewired . | . . . Allies Hacked . | . . . Hacks Repelled . | . . . Allies | -11 -10 -9 -------- Run | Scr Mat Mat Total Allies . | . . . Largest Group . | . . . Highest-Rated Group . | . . . Highest-Rated Ally . | . . . Total Orders . | . . . Ally Attacks . | . . . Total Damage . | . . . Kills . | . . . Allies Corrupted . | . . . Allies Melted . | . . . Intel | -11 -10 -9 ------- Run | Scr Mat Mat Robot Analysis Total . | . . . Derelict Logs Recovered . | . . . Drone Launches . | . . . Drone Recoveries . | . . . Exploration | -11 -10 -9 ------------- Run | Scr Mat Mat Turns Passed 486 | 56 149 281 Spaces Moved 292 | 44 99 149 Core 16 | 16 . . Treads 109 | . . 109 Legs 167 | 28 99 40 Wheels . | . . . Hover . | . . . Flight . | . . . Fastest Speed 50 | 50 120 120 Average Speed 131 | 94 120 149 Slowest Speed 160 | 120 120 160 Overloaded Moves . | . . . Propulsion Burnouts . | . . . Robots Hopped . | . . . Cave-ins Triggered . | . . . Exploration Rate (%) 13 | 4 20 17 Regions Visited 2 Branch Regions . Pre-discovered Areas . | . . . Known Exits Taken . | . . . Unknown Exits Taken 2 | 1 1 . Scrap Searched . | . . . Spaces Dug . | . . . Terrain Destroyed . | . . . Melee . | . . . Projectile . | . . . AOE . | . . . Terrain Rammed . | . . . Walls Destroyed . | . . . Machines Disabled . | . . . Actions | -11 -10 -9 --------- Run | Scr Mat Mat Total 356 | 59 113 184 Wait 6 | . . 6 Move 290 | 43 98 149 Hop . | . . . Pick Up 19 | 8 5 6 Fast Attach . | . . . Attach 10 | 6 . 4 Detach . | . . . Swap 3 | . . 3 Drop 6 | 2 . 4 Fire 10 | . 10 . Melee 12 | . . 12 Ram . | . . . Kick . | . . . Crush . | . . . Escape Stasis . | . . . Rewire . | . . . Trap . | . . . Miscellaneous . | . . . Route ------- -11/Scrapyard -10/Materials -9/Materials History --------- Turn | Location | Event 2 | -11/Scrapyard | Discovered new exit (range 16) 57 | -11/Scrapyard | Entered Materials 184 | -10/Materials | Discovered new exit (range 14) 206 | -10/Materials | Entered another Materials area 206 | -9/Materials | Evolved 2 slots: Propulsion x2 313 | -9/Materials | Build established: Mutant 487 | -9/Materials | Self-destructed Last Messages --------------- K-01 Serf cleans the Terminal. K-01 Serf collects debris. O-16 Technician: "IFF HANDSHAKE FAILED. SECURING TERMINAL." ALERT: Hostiles spotted, dispatching reinforcements to Terminal M009. Terminal unresponsive. K-01 Serf collects debris. G-34 Mercenary destroyed. Acquired 41 matter. Y-45 Defender destroyed. Imp. Datajack destroyed. R-06 Scavenger collects Heat Sink. G-47 Trooper knocked back. R-06 Scavenger collects Imp. Ion Engine. G-47 Trooper destroyed. Acquired 24 matter. R-06 Scavenger inserts Aluminum Leg into recycling unit. R-06 Scavenger inserts Heat Sink into recycling unit. R-06 Scavenger inserts Imp. Ion Engine into recycling unit. R-06 Scavenger collects Lgt. Armor Plating. U-05 Engineer builds a Door. Map ----- +----------------------------------------------------+ | | | | | | | | | | | | | | | | | | | | | | | | | | | | | | | | | | | | | | | | | | | | | | | ?????????????????????????????????????????????????? | | ???????????????????##############????????????????? | | ???????????????????# @ #????????????????? | | ??????############## #????????????????? | | ?? # """" """" #????????????????? | | ?? + """" """" #?????#####??????? | | ?????#+########### # """" """" #?????# #??????? | | ????????????######/##############?##### #??????? | | ????????????# #?????????#//= #??????? | | ????????????# #?????????#/] +??????? | | ????????????# #?????????#// #??????? | | ????????????# """ " " #?????????#/ #??????? | | ????????????# """ "R" #?????????#** #??????? | | ????????????# """ """ #?????????#** #??????? | | ????????????# #?????????##### #??????? | | ???????????##+####+######?????????????# #??????? | | ???????????# ^ #??????????######?# #??????? | | ???????????# / #?????????##!!!!### #??????? | | ???????????#^ ^ #?????????#! !## #??????? | | ???????????#"""^ ![#?????????#! !## ##### | | ???????????#"Y% =%########### # | | ???????????#""" =[ | | ???????????# ] =| | | ???????????# """ !! | | ???????????# #### #####+#### """ !! | | ???????????# #??# #?# # ] """ ! | | ??????????# ??# #?# # ^ | +----------------------------------------------------+ Best States ------------- Heat Dissipation 28 Energy Generation 14 Energy Capacity 275 Matter Stores 300 Matter Capacity 300 Sight Range 16 Terrain Scan Density 10 Evasion (%) 50 Recoil Reduction 2 Item Schematics ----------------- None Robot Schematics ------------------ None Fabricated ------------ Nothing Alien Tech Used ----------------- None Achievements -------------- None Challenges ------------ None Game ------ Seed ManeuveringSubatomicMachine Manual? 0 Play Time 00:10:34 Cumulative 2.7 hours Start 2021.05.01 @ 21:26:41 End 2021.05.01 @ 21:33:41 Sessions 1 Manual Loads 0 Difficulty Rogue Special Mode None Game No. 8 Rogue 8 Adventurer 0 Explorer 0 Win Type - Total 0 Types 0/0/0/0/0/0/0/0/0 Lore% 1 Gallery% 8 Achievement% 3 Wizard Run 0 Options --------- ASCII 0 Keyboard 0 Movement Numpad Keybinds 0 Fullscreen 1 Font 18/SmallcapsGlow Map View 76x50 Tactical HUD 0 Map Filters NONE Filters NONE Steam 1 RUN: c8124ab4-05be-41ef-887a-3a11ba2ee84b